fUST/lending_fUST_20240604
["ID","MTS","AMOUNT","RATE_DAILY","PERIOD"]
[328539992,1717510050202,-500.0,0.00023285,2]
[328539993,1717510050224,-500.0,0.00023285,2]
[328539994,1717510050243,-500.0,0.00023285,2]
[328539995,1717510050263,-500.0,0.00023287,2]
[328539996,1717510050285,-500.0,0.00023447,2]
[328539997,1717510050305,-160.63607597,0.00023454,2]
[328539998,1717510050327,-1729.58,0.00023546,2]
[328539999,1717510050351,-500.0,0.00023546,2]
[328540000,1717510050371,-500.0,0.00023546,2]
[328540001,1717510050392,-500.0,0.00023546,2]
[328540002,1717510050413,-500.0,0.00023546,2]
[328540003,1717510050435,-625.14,0.00023546,2]
[328540004,1717510050455,-218.2239818,0.00023547,2]
[328540005,1717510050477,-500.0,0.00023547,2]
[328540006,1717510050498,-1892.85,0.00023547,2]
[328540007,1717510050520,-500.0,0.00023547,2]
[328540008,1717510050540,-500.0,0.00023547,2]
[328540009,1717510050560,-258.719994,0.00023547,2]
[328540010,1717510050580,-500.0,0.00023547,2]
[328540011,1717510050602,-500.0,0.00023547,2]
[328540012,1717510050622,-500.0,0.00023547,2]
[328540013,1717510050645,-1420.37,0.00023547,2]
[328540014,1717510050666,-844.22,0.00023547,2]
[328540015,1717510050686,-500.0,0.00023547,2]
[328540016,1717510050712,-500.0,0.00023547,2]
[328540017,1717510050733,-500.0,0.00023559,2]
[328540018,1717510050753,-500.0,0.00023559,2]
[328540019,1717510050774,-500.0,0.00023559,2]
[328540020,1717510050794,-500.0,0.00023561,2]
[328540021,1717510050813,-160.49026021,0.00023611,2]
[328540022,1717510050837,-500.0,0.00023721,2]
[328540023,1717510050857,-151.0,0.00023728,5]
[328540024,1717510050876,-151.0,0.00023728,5]
[328540025,1717510050898,-1729.58,0.0002382,2]
[328540026,1717510050918,-500.0,0.0002382,2]
[328540027,1717510050939,-500.0,0.0002382,2]
[328540028,1717510050959,-500.0,0.0002382,2]
[328540029,1717510050982,-500.0,0.0002382,2]
[328540030,1717510051003,-625.14,0.0002382,2]
[328540031,1717510051024,-500.0,0.00023821,2]
[328540032,1717510051046,-1892.85,0.00023821,2]
[328540033,1717510051067,-500.0,0.00023821,2]
[328540034,1717510051087,-500.0,0.00023821,2]
[328540035,1717510051109,-500.0,0.00023821,2]
[328540036,1717510051131,-500.0,0.00023821,2]
[328540037,1717510051151,-500.0,0.00023821,2]
[328540038,1717510051174,-1420.37,0.00023821,2]
[328540039,1717510051197,-844.22,0.00023821,2]
[328540040,1717510051221,-500.0,0.00023821,2]
[328540041,1717510051241,-500.0,0.00023833,2]
[328540042,1717510051262,-613.82300602,0.00023833,2]
[328540043,1717510051283,-500.0,0.00023833,2]
[328540044,1717510051304,-500.0,0.00023835,2]
[328540045,1717510051324,-60864.37704154,0.0002385,2]
[328540046,1717510051351,-500.0,0.00023995,2]
[328540047,1717510051372,-1729.58,0.00024094,2]
[328540048,1717510051395,-334.89,0.00024094,2]
[328540049,1717510051416,-500.0,0.00024094,2]
[328540050,1717510051439,-500.0,0.00024094,2]
[328540051,1717510051463,-500.0,0.00024094,2]
[328540052,1717510051483,-625.14,0.00024094,2]
[328540053,1717510051503,-500.0,0.00024095,2]
[328540054,1717510051527,-1892.85,0.00024095,2]
[328540055,1717510051548,-500.0,0.00024095,2]
[328540056,1717510051571,-500.0,0.00024095,2]
[328540057,1717510051594,-500.0,0.00024095,2]
[328540058,1717510051615,-500.0,0.00024095,2]
[328540059,1717510051635,-500.0,0.00024095,2]
[328540060,1717510051658,-1420.37,0.00024095,2]
[328540061,1717510051679,-844.22,0.00024095,2]
[328540062,1717510051699,-500.0,0.00024095,2]
[328540063,1717510051724,-157.29997345,0.00024107,2]
[328540064,1717510051744,-500.0,0.00024107,2]
[328540065,1717510051768,-500.0,0.00024107,2]
[328540066,1717510051788,-155.45926229,0.00024109,2]
[328540067,1717510051808,-174.13156493,0.00024109,2]
[328540068,1717510051828,-500.0,0.00024109,2]
[328540069,1717510051850,-182.0767971,0.0002411,2]
[328540070,1717510051871,-151.0,0.00024219,7]
[328540071,1717510051891,-151.0,0.00024219,7]
[328540072,1717510051914,-500.0,0.00024269,2]
[328540073,1717510051937,-1729.58,0.00024368,2]
[328540074,1717510051959,-500.0,0.00024368,2]
[328540075,1717510051984,-220.13986838,0.00024368,2]
[328540076,1717510052006,-500.0,0.00024368,2]
[328540077,1717510052028,-625.14,0.00024368,2]
[328540078,1717510052048,-500.0,0.00024369,2]
[328540079,1717510052072,-1892.85,0.00024369,2]
[328540080,1717510052094,-500.0,0.00024369,2]
[328540081,1717510052116,-500.0,0.00024369,2]
[328540082,1717510052139,-500.0,0.00024369,2]
[328540083,1717510052162,-500.0,0.00024369,2]
[328540084,1717510052183,-500.0,0.00024369,2]
[328540085,1717510052204,-1420.37,0.00024369,2]
[328540086,1717510052229,-844.22,0.00024369,2]
[328540087,1717510052249,-612.87,0.00024369,2]
[328540088,1717510052270,-1339.37809492,0.00024381,2]
[328540089,1717510052290,-500.0,0.00024381,2]
[328540090,1717510052311,-500.0,0.00024381,2]
[328540091,1717510052334,-2405.91836184,0.00024382,2]
[328540092,1717510052359,-500.0,0.00024383,2]
[328540093,1717510052473,-308.513861,0.00024384,2]
[328540094,1717510052493,-260.6221709,0.00024384,2]
[328540095,1717510052514,-204.985722,0.00024384,2]
[328540096,1717510052536,-153.0,0.00024384,2]
[328540097,1717510052556,-306.0,0.00024384,2]
[328540098,1717510052576,-153.0,0.00024384,2]
[328540099,1717510052595,-153.0,0.00024384,2]
[328540100,1717510052618,-500.0,0.00024543,2]
[328540101,1717510052638,-160.63607597,0.00024543,2]
[328540102,1717510052659,-155.43947333,0.00024599,2]
[328540103,1717510052678,-26004.28948701,0.000246,2]
[328540104,1717510052701,-1729.58,0.00024642,2]
[328540105,1717510052724,-500.0,0.00024642,2]
[328540106,1717510052747,-500.0,0.00024642,2]
[328540107,1717510052768,-625.14,0.00024642,2]
[328540108,1717510052790,-500.0,0.00024643,2]
[328540109,1717510052813,-1892.85,0.00024643,2]
[328540110,1717510052834,-500.0,0.00024643,2]
[328540111,1717510052854,-500.0,0.00024643,2]
[328540112,1717510052876,-500.0,0.00024643,2]
[328540113,1717510052899,-500.0,0.00024643,2]
[328540114,1717510052920,-500.0,0.00024643,2]
[328540115,1717510052942,-1420.37,0.00024643,2]
[328540116,1717510052967,-844.22,0.00024643,2]
[328540117,1717510052987,-500.0,0.00024655,2]
[328540118,1717510053007,-500.0,0.00024655,2]
[328540119,1717510053028,-276.34528882,0.00024657,2]
[328540120,1717510053050,-21323.79,0.00024657,2]
[328540121,1717510053072,-21323.79,0.00024657,2]
[328540122,1717510053094,-21323.79,0.00024657,2]
[328540123,1717510053116,-21323.79,0.00024657,2]
[328540124,1717510053138,-21323.79,0.00024657,2]
[328540125,1717510053159,-21323.79,0.00024657,2]
[328540126,1717510053181,-21323.79,0.00024657,2]
[328540127,1717510053201,-380.0,0.00024658,2]
[328540128,1717510053224,-151.0,0.00024711,7]
[328540129,1717510053246,-151.0,0.00024711,7]
[328540130,1717510053268,-922.4720001,0.00024724,2]
[328540131,1717510053291,-500.0,0.00024817,6]
[328540132,1717510053312,-2000.0,0.0002483,2]
[328540133,1717510053334,-1729.58,0.00024916,6]
[328540134,1717510053359,-500.0,0.00024916,6]
[328540135,1717510053381,-500.0,0.00024916,6]
[328540136,1717510053403,-625.14,0.00024916,6]
[328540137,1717510053424,-500.0,0.00024917,6]
[328540138,1717510053450,-1892.85,0.00024917,6]
[328540139,1717510053473,-500.0,0.00024917,6]
[328540140,1717510053493,-500.0,0.00024917,6]
[328540141,1717510053514,-500.0,0.00024917,6]
[328540142,1717510053536,-500.0,0.00024917,6]
[328540143,1717510053557,-500.0,0.00024917,6]
[328540144,1717510053580,-1420.37,0.00024917,6]
[328540145,1717510053604,-844.22,0.00024917,6]
[328540146,1717510053626,-21323.79,0.00024928,2]
[328540147,1717510053647,-1153.49437578,0.00024929,2]
[328540148,1717510053668,-1341.0455413,0.00024929,2]
[328540149,1717510053688,-1981.28535141,0.00024929,2]
[328540150,1717510053709,-500.0,0.00024929,6]
[328540151,1717510053731,-500.0,0.00024929,6]
[328540152,1717510053751,-194.53223926,0.0002493,2]
[328540153,1717510053772,-163.94283083,0.0002493,2]
[328540154,1717510053792,-1109.00789933,0.00024998,2]
[328540155,1717510053813,-201.93937203,0.00024999,2]
[328540156,1717510053836,-21323.79,0.00024999,2]
[328540157,1717510053857,-1000.0,0.00025,2]
[328540158,1717510053877,-1022.31736873,0.00025,2]
[328540159,1717510053896,-151.0,0.00025,2]
[328540160,1717510053916,-964.11202525,0.00025,10]
[328540161,1717510053938,-201.50141898,0.00025,2]
[328540162,1717510053960,-14826.17604443,0.00025,2]
[328540201,1717510235080,-946.91,0.00022899,2]
[328540202,1717510235090,-516.54636231,0.00022998,2]
[328540203,1717510235103,-745.35363769,0.00022998,2]
[328540204,1717510235114,-500.0,0.00022998,2]
[328540205,1717510235123,-500.0,0.00022998,2]
[328540206,1717510235133,-500.0,0.00022998,2]
[328540207,1717510235142,-1153.06,0.00022998,2]
[328540208,1717510235152,-562.81,0.00022998,2]
[328540209,1717510235161,-381.33,0.00022998,2]
[328540210,1717510235170,-500.0,0.00022998,2]
[328540211,1717510235179,-500.0,0.00022999,2]
[328540212,1717510235189,-199.15114901,0.00022999,2]
[328540213,1717510235201,-300.84885099,0.00022999,2]
[328540214,1717510235211,-946.91,0.00023173,2]
[328540215,1717510235220,-1261.9,0.00023272,2]
[328540216,1717510235229,-500.0,0.00023272,2]
[328540217,1717510235239,-500.0,0.00023272,2]
[328540218,1717510235248,-500.0,0.00023272,2]
[328540219,1717510235257,-852.22817325,0.00023272,2]
[328540220,1717510235269,-300.83182675,0.00023272,2]
[328540221,1717510235278,-60.98317775,0.00023272,2]
[328540222,1717510235290,-501.82682225,0.00023272,2]
[328540223,1717510235300,-500.0,0.00023272,2]
[328540224,1717510235309,-500.0,0.00023273,2]
[328540225,1717510235319,-500.0,0.00023273,2]
[328540226,1717510235328,-946.91,0.00023447,2]
[328540227,1717510235338,-1261.9,0.00023546,2]
[328540228,1717510235347,-500.0,0.00023546,2]
[328540229,1717510235357,-500.0,0.00023546,2]
[328540230,1717510235366,-500.0,0.00023546,2]
[328540231,1717510235375,-1153.06,0.00023546,2]
[328540232,1717510235383,-562.81,0.00023546,2]
[328540233,1717510235393,-500.0,0.00023546,2]
[328540234,1717510235403,-30.06283858,0.00023547,2]
[328540342,1717510238364,-557.09402516,0.00023547,2]
[328540343,1717510238374,-500.0,0.00023547,2]
[328540345,1717510238383,-742.44570347,0.00023721,2]
[328540379,1717510240675,-204.46429653,0.00023721,2]
[328540380,1717510240686,-1261.9,0.0002382,2]
[328540382,1717510240695,-500.0,0.0002382,2]
[328540384,1717510240705,-500.0,0.0002382,2]
[328540386,1717510240715,-500.0,0.0002382,2]
[328540388,1717510240724,-1153.06,0.0002382,2]
[328540390,1717510240734,-562.81,0.0002382,2]
[328540392,1717510240744,-500.0,0.0002382,2]
[328540394,1717510240754,-500.0,0.00023821,2]
[328540396,1717510240763,-946.91,0.00023995,2]
[328540398,1717510240773,-1261.9,0.00024094,2]
[328540400,1717510240782,-500.0,0.00024094,2]
[328540402,1717510240792,-500.0,0.00024094,2]
[328540404,1717510240801,-500.0,0.00024094,2]
[328540406,1717510240811,-1153.06,0.00024094,2]
[328540408,1717510240821,-156.05954648,0.00024094,2]
[328540411,1717510240833,-406.75045352,0.00024094,2]
[328540414,1717510240843,-500.0,0.00024094,2]
[328540416,1717510240853,-478.96373238,0.00024095,2]
[328540477,1717510242510,-21.03626762,0.00024095,2]
[328540479,1717510242520,-946.91,0.00024269,2]
[328540481,1717510242530,-928.95708295,0.00024368,2]
[328540556,1717510243667,-332.94291705,0.00024368,2]
[328540557,1717510243676,-173.66949317,0.00024368,2]
[328540558,1717510243687,-326.33050683,0.00024368,2]
[328540559,1717510243696,-500.0,0.00024368,2]
[328540560,1717510243706,-500.0,0.00024368,2]
[328540561,1717510243715,-1153.06,0.00024368,2]
[328540562,1717510243724,-562.81,0.00024368,2]
[328540563,1717510243733,-500.0,0.00024368,2]
[328540564,1717510243742,-520.47999839,0.00024369,2]
[328540565,1717510243752,-153.0,0.00024384,2]
[328540566,1717510243761,-153.0,0.00024384,2]
[328540567,1717510243770,-205.0679425,0.00024384,2]
[328540568,1717510243779,-153.0,0.00024384,2]
[328540569,1717510243788,-205.0679425,0.00024384,2]
[328540570,1717510243797,-153.0,0.00024384,2]
[328540571,1717510243806,-153.0,0.00024384,2]
[328540572,1717510243815,-153.0,0.00024384,2]
[328540573,1717510243824,-153.0,0.00024384,2]
[328540574,1717510243833,-205.0679425,0.00024384,2]
[328540575,1717510243841,-946.91,0.00024543,2]
[328540576,1717510243850,-1261.9,0.00024642,2]
[328540577,1717510243859,-500.0,0.00024642,2]
[328540578,1717510243873,-500.0,0.00024642,2]
[328540580,1717510243882,-500.0,0.00024642,2]
[328540583,1717510243891,-1153.06,0.00024642,2]
[328540587,1717510243900,-562.81,0.00024642,2]
[328540591,1717510243909,-500.0,0.00024642,2]
[328540594,1717510243918,-217.33,0.00024647,3]
[328540597,1717510243926,-13327.36,0.00024657,2]
[328540600,1717510243936,-13327.36,0.00024657,2]
[328540603,1717510243945,-13327.36,0.00024657,2]
[328540605,1717510243954,-13327.36,0.00024657,2]
[328540607,1717510243963,-13327.36,0.00024657,2]
[328540609,1717510243972,-13327.36,0.00024657,2]
[328540611,1717510243980,-13327.36,0.00024657,2]
[328540613,1717510243990,-946.91,0.00024817,6]
[328540615,1717510243999,-13327.36,0.00024829,2]
[328540617,1717510244008,-197.50311704,0.00024858,2]
[328540619,1717510244017,-1261.9,0.00024916,6]
[328540621,1717510244027,-500.0,0.00024916,6]
[328540623,1717510244035,-500.0,0.00024916,6]
[328540625,1717510244044,-500.0,0.00024916,6]
[328540627,1717510244054,-1153.06,0.00024916,6]
[328540629,1717510244063,-562.81,0.00024916,6]
[328540631,1717510244072,-500.0,0.00024916,6]
[328540633,1717510244081,-151.0,0.0002493,2]
[328540635,1717510244091,-13327.36,0.00024999,2]
[328540637,1717510244100,-573.0,0.00025,2]
[328540639,1717510244109,-29405.43213554,0.00025,2]
[328540641,1717510244120,-213.23665545,0.00025089,2]
[328540643,1717510244130,-946.91,0.00025091,6]
[328540645,1717510244139,-204.20026188,0.00025189,6]
[328540647,1717510244148,-625.14,0.0002519,6]
[328540649,1717510244158,-1261.9,0.0002519,6]
[328540651,1717510244167,-500.0,0.0002519,6]
[328540654,1717510244186,-500.0,0.0002519,6]
[328540656,1717510244197,-500.0,0.0002519,6]
[328540658,1717510244206,-1153.06,0.0002519,6]
[328540660,1717510244216,-562.81,0.0002519,6]
[328540662,1717510244225,-500.0,0.0002519,6]
[328540664,1717510244234,-500.0,0.00025191,6]
[328540666,1717510244244,-500.0,0.00025191,6]
[328540668,1717510244255,-500.0,0.00025191,6]
[328540670,1717510244264,-302.0288321,0.00025204,2]
[328540673,1717510244274,-181.70453988,0.00025204,2]
[328540674,1717510244283,-153.0,0.00025205,2]
[328540677,1717510244294,-205.0679425,0.00025205,2]
[328540679,1717510244304,-153.0,0.00025205,2]
[328540681,1717510244314,-205.0679425,0.00025205,2]
[328540683,1717510244323,-153.0,0.00025205,2]
[328540685,1717510244332,-205.0679425,0.00025205,2]
[328540687,1717510244341,-153.0,0.00025205,2]
[328540689,1717510244350,-153.0,0.00025205,2]
[328540691,1717510244361,-205.0679425,0.00025205,2]
[328540693,1717510244372,-153.0,0.00025205,2]
[328540695,1717510244381,-205.0679425,0.00025205,2]
[328540697,1717510244391,-410.135885,0.00025205,2]
[328540699,1717510244400,-205.0679425,0.00025205,2]
[328540701,1717510244416,-205.0679425,0.00025205,2]
[328540703,1717510244426,-204.5240867,0.00025205,2]
[328540705,1717510244435,-151.0,0.0002523,7]
[328540707,1717510244444,-151.0,0.0002523,7]
[328540709,1717510244456,-13327.36,0.00025261,2]
[328540711,1717510244465,-33463.28977054,0.00025262,30]
[328540713,1717510244475,-754.69721102,0.0002528,2]
[328540715,1717510244484,-946.91,0.00025365,6]
[328540717,1717510244494,-625.14,0.00025464,6]
[328540719,1717510244503,-1261.9,0.00025464,6]
[328540721,1717510244512,-500.0,0.00025464,6]
[328540723,1717510244522,-500.0,0.00025464,6]
[328540725,1717510244531,-196.3317823,0.00025464,6]
[328540727,1717510244541,-1153.06,0.00025464,6]
[328540729,1717510244551,-562.81,0.00025464,6]
[328540731,1717510244561,-500.0,0.00025464,6]
[328540746,1717510244681,-500.0,0.00025465,6]
[328540749,1717510244703,-500.0,0.00025465,6]
[328540751,1717510244712,-500.0,0.00025465,6]
[328540752,1717510244721,-213.23665545,0.00025494,2]
[328540755,1717510244730,-155.27379764,0.00025505,2]
[328540757,1717510244739,-946.91,0.00025639,6]
[328540759,1717510244749,-151.0,0.00025708,7]
[328540760,1717510244759,-151.0,0.00025708,7]
[328540763,1717510244768,-625.14,0.00025738,6]
[328540765,1717510244778,-1261.9,0.00025738,6]
[328540766,1717510244787,-500.0,0.00025738,6]
[328540769,1717510244796,-500.0,0.00025738,6]
[328540771,1717510244805,-1153.06,0.00025738,6]
[328540772,1717510244814,-562.81,0.00025738,6]
[328540775,1717510244824,-13327.36,0.00025738,2]
[328540777,1717510244833,-500.0,0.00025738,6]
[328540779,1717510244842,-500.0,0.00025739,6]
[328540781,1717510244851,-385.73123573,0.00025739,6]
[328540783,1717510244861,-500.0,0.00025739,6]
[328540785,1717510244871,-403.23387549,0.00025751,2]
[328540787,1717510244880,-155.4716728,0.00025751,2]
[328540789,1717510244889,-153.0,0.00025753,2]
[328540791,1717510244897,-153.0,0.00025753,2]
[328540793,1717510244906,-153.0,0.00025753,2]
[328540795,1717510244915,-213.23665545,0.00025899,2]
[328540797,1717510244924,-184.34978399,0.000259,2]
[328540799,1717510244934,-946.91,0.00025913,6]
[328540801,1717510244943,-4291.34006331,0.00025999,7]
[328540802,1717510244952,-6757.45363472,0.00025999,2]
[328540804,1717510244961,-13327.36,0.00025999,2]
[328540806,1717510244971,-13327.36,0.00025999,2]
[328540808,1717510244980,-7365.6072277,0.00026,2]
[328540811,1717510244992,-2005.55106705,0.00026,5]
[328540813,1717510245002,-80685.70783158,0.00026,2]
[328540815,1717510245011,-600.0,0.00026,2]
[328540816,1717510245020,-151.0,0.00026,2]
[328540818,1717510245031,-151.0,0.00026,2]
[328540820,1717510245040,-166.666666,0.00026,2]
[328540822,1717510245050,-151.0,0.00026,2]
[328540824,1717510245059,-625.14,0.00026012,6]
[328540825,1717510245068,-1261.9,0.00026012,6]
[328540827,1717510245078,-500.0,0.00026012,6]
[328540829,1717510245087,-500.0,0.00026012,6]
[328540831,1717510245097,-1153.06,0.00026012,6]
[328540833,1717510245106,-562.81,0.00026012,6]
[328540834,1717510245117,-500.0,0.00026012,6]
[328540836,1717510245126,-500.0,0.00026013,6]
[328540838,1717510245135,-500.0,0.00026013,6]
[328540840,1717510245145,-434.66,0.00026017,3]
[328540842,1717510245154,-302.91535958,0.00026024,2]
[328540844,1717510245163,-1150.18520178,0.00026025,2]
[328540845,1717510245172,-154.9690062,0.00026025,2]
[328540847,1717510245182,-154.9690062,0.00026025,2]
[328540849,1717510245194,-13327.36,0.00026025,2]
[328540851,1717510245203,-155.33465968,0.00026025,2]
[328540853,1717510245212,-7909.30313863,0.00026025,2]
[328540855,1717510245222,-187.38717571,0.00026025,2]
[328540857,1717510245231,-620.8902107,0.00026169,2]
[328540858,1717510245240,-151.0,0.00026186,7]
[328540860,1717510245250,-151.0,0.00026186,7]
[328540862,1717510245259,-199.46534052,0.00026187,6]
[328540864,1717510245273,-747.44465948,0.00026187,6]
[328540866,1717510245283,-4294.7707057,0.00026207,30]
[328540914,1717510990863,164.49289543,9.999e-05,2]
[328540919,1717511230153,-181.85934055,0.00022996,2]
[328540920,1717511236167,-59.92108109,0.00022996,2]
[328540921,1717511236193,-2761.76093806,0.00022997,2]
[328540922,1717511236213,-360.53754612,0.00022999,2]
[328540923,1717511236233,-179.15797885,0.000239,2]
[328540924,1717511236253,-228.45,0.00024656,2]
[328540925,1717511236273,-500.0,0.00024656,2]
[328540926,1717511236294,-500.0,0.00024656,2]
[328540927,1717511236313,-500.0,0.00024656,2]
[328540928,1717511236333,-500.0,0.00024656,2]
[328540929,1717511236353,-500.0,0.00024656,2]
[328540930,1717511236373,-500.0,0.00024656,2]
[328540931,1717511236393,-500.0,0.00024656,2]
[328540932,1717511236412,-505.16107681,0.00024656,2]
[328540933,1717511236434,-500.0,0.00024656,2]
[328540934,1717511236454,-493.9708446,0.00024656,2]
[328540935,1717511236474,-489.04932178,0.00024656,2]
[328540936,1717511236493,-449.75312204,0.00024656,2]
[328540937,1717511236513,-160.63607597,0.000249,2]
[328540938,1717511236533,-29405.43213554,0.00025,2]
[328540939,1717511236554,-153.0,0.00025,2]
[328540940,1717511236574,-285.92152819,0.00025089,2]
[328540941,1717511236592,-2075.37,0.00025189,6]
[328540942,1717511236617,-1898.641339,0.000252,2]
[328540943,1717511236638,-576.53,0.00025203,6]
[328540944,1717511236659,-500.0,0.00025203,6]
[328540945,1717511236682,-500.0,0.00025203,6]
[328540946,1717511236703,-630.95,0.00025203,6]
[328540947,1717511236724,-500.0,0.0002526,6]
[328540948,1717511236747,-500.0,0.0002526,6]
[328540949,1717511236769,-500.0,0.0002526,6]
[328540950,1717511236789,-500.0,0.0002526,6]
[328540951,1717511236809,-500.0,0.0002526,6]
[328540952,1717511236831,-500.0,0.0002526,6]
[328540953,1717511236853,-500.0,0.0002526,6]
[328540954,1717511236874,-500.0,0.0002526,6]
[328540955,1717511236898,-500.0,0.0002526,6]
[328540956,1717511236918,-285.92152817,0.0002541,2]
[328540957,1717511236939,-2075.37,0.00025463,6]
[328540958,1717511236961,-576.53,0.00025477,6]
[328540959,1717511236982,-354.0514073,0.00025477,6]
[328540960,1717511237003,-500.0,0.00025477,6]
[328540961,1717511237024,-630.95,0.00025477,6]
[328540962,1717511237044,-500.0,0.00025534,6]
[328540963,1717511237063,-500.0,0.00025534,6]
[328540964,1717511237085,-500.0,0.00025534,6]
[328540965,1717511237104,-500.0,0.00025534,6]
[328540966,1717511237125,-535.83404183,0.00025534,6]
[328540967,1717511237147,-500.0,0.00025534,6]
[328540968,1717511237168,-500.0,0.00025534,6]
[328540969,1717511237192,-500.0,0.00025534,6]
[328540970,1717511237212,-583.2560174,0.00025534,2]
[328540971,1717511237231,-205.0679425,0.00025534,2]
[328540972,1717511237250,-205.0679425,0.00025534,2]
[328540973,1717511237269,-205.0679425,0.00025534,2]
[328540974,1717511237290,-205.0679425,0.00025644,2]
[328540975,1717511237310,-205.0679425,0.00025644,2]
[328540976,1717511237329,-1000.0,0.000257,2]
[328540977,1717511237349,-151.0,0.0002572,7]
[328540978,1717511237370,-285.92152817,0.00025731,2]
[328540979,1717511237390,-2075.37,0.00025737,6]
[328540980,1717511237412,-576.53,0.00025751,6]
[328540981,1717511237434,-500.0,0.00025751,6]
[328540982,1717511237456,-630.95,0.00025751,6]
[328540983,1717511237477,-500.0,0.00025808,6]
[328540984,1717511237498,-244.1568619,0.00025808,6]
[328540985,1717511237519,-500.0,0.00025808,6]
[328540986,1717511237543,-500.0,0.00025808,6]
[328540987,1717511237566,-500.0,0.00025808,6]
[328540988,1717511237586,-873.21824318,0.00025981,3]
[328541053,1717511434725,-150.0,0.00023637,2]
[328541054,1717511434734,-553.7636435,0.00025187,2]
[328541055,1717511434747,-2207.99729456,0.00025187,2]
[328541056,1717511434756,-504.46,0.00025188,6]
[328541057,1717511434767,-500.0,0.00025203,6]
[328541058,1717511434777,-500.0,0.00025203,6]
[328541059,1717511434788,-500.0,0.00025203,6]
[328541060,1717511434802,-1815.95,0.0002526,6]
[328541062,1717511434813,-504.46,0.00025462,6]
[328541063,1717511434823,-137.23698237,0.00025477,6]
[328541094,1717511440458,-500.0,0.00025188,6]
[328541096,1717511440468,-500.0,0.00025462,6]
[328541098,1717511440478,-362.76301763,0.00025477,6]
[328541100,1717511440488,-500.0,0.00025477,6]
[328541102,1717511440498,-1815.95,0.00025534,6]
[328541104,1717511440507,-504.46,0.00025736,6]
[328541106,1717511440518,-500.0,0.00025736,6]
[328541107,1717511440528,-500.0,0.00025751,6]
[328541109,1717511440538,-500.0,0.00025751,6]
[328541111,1717511440548,-1815.95,0.00025808,6]
[328541113,1717511440559,-160.63607597,0.000259,2]
[328541114,1717511440569,-500.0,0.00025999,6]
[328541115,1717511440579,-5553.07,0.00025999,2]
[328541116,1717511440590,-5020.16263915,0.00025999,2]
[328541123,1717511441288,-532.90736085,0.00025999,2]
[328541124,1717511441299,-3311.5326422,0.00026,2]
[328541281,1717511474674,154.92253873,9.999e-05,2]
[328541282,1717511509448,0.04646747,9.999e-05,2]
[328541283,1717511509472,162.93661136,9.999e-05,2]
[328541284,1717511509504,1178.98819751,9.999e-05,2]
[328541285,1717511510871,529.79177973,9.999e-05,2]
[328541286,1717511513550,303.01600666,9.999e-05,2]
[328541287,1717511513945,1154.71377429,9.999e-05,2]
[328541288,1717511521531,317.21490521,9.999e-05,2]
[328541303,1717511523069,3205.94944129,9.999e-05,2]
[328541305,1717511531016,154.92253873,9.999e-05,2]
[328541306,1717511532395,1500.09697047,9.999e-05,2]
[328541309,1717511554266,181.85934055,9.999e-05,2]
[328541311,1717511736720,515.13028145,9.999e-05,2]
[328541312,1717511757433,164.49289543,9.999e-05,2]
[328541321,1717512131793,241.78042164,9.999e-05,2]
[328541330,1717512415974,292.14570031,0.00012347,2]